[Event "Schack-SM 2023: Veteran-SM 65+"]
[Site "Helsingborg Arena, Mellersta Stenbocksgatan 14, Helsingborg, Sweden"]
[Date "2023.07.03"]
[Round "3.3"]
[White "Ivarsson, Torbjorn"]
[Black "Haggvik, Kjell"]
[Result "1-0"]
[TimeControl "90 minutes for 40 moves + 30 minutes for the rest of games + 30 seconds per move from move one."]
[WhiteElo "2073"]
[BlackElo "1683"]

1. d4 {[%clk 01:30:50]} {[%emt 00:00:10]} d5 {[%clk 01:30:51]} {[%emt
00:00:09]} 2. Nf3 {[%clk 01:30:55]} {[%emt 00:00:24]} Nf6 {[%clk 01:31:12]}
{[%emt 00:00:09]} 3. e3 {[%clk 01:30:50]} {[%emt 00:00:35]} Bg4 {[%clk
01:29:19]} {[%emt 00:02:23]} 4. c4 {[%clk 01:31:03]} {[%emt 00:00:18]} e6
{[%clk 01:29:22]} {[%emt 00:00:27]} 5. Qb3 {[%clk 01:29:48]} {[%emt 00:01:44]}
Qc8 {[%clk 01:28:18]} {[%emt 00:01:35]} 6. Ne5 {[%clk 01:28:45]} {[%emt
00:01:32]} Bf5 {[%clk 01:27:12]} {[%emt 00:01:35]} 7. Nc3 {[%clk 01:27:46]}
{[%emt 00:01:29]} c6 {[%clk 01:26:37]} {[%emt 00:01:06]} 8. Be2 {[%clk
01:25:57]} {[%emt 00:02:19]} Nbd7 {[%clk 01:24:52]} {[%emt 00:02:15]} 9. f4
{[%clk 01:19:58]} {[%emt 00:06:28]} Bd6 {[%clk 01:20:00]} {[%emt 00:05:22]} 10.
O-O {[%clk 01:17:48]} {[%emt 00:02:41]} Ne4 {[%clk 01:17:09]} {[%emt 00:03:22]}
11. Bf3 {[%clk 01:17:24]} {[%emt 00:00:53]} Nxc3 {[%emt 00:08:57]} 12. Qxc3
{[%emt 00:02:57]} Nf6 {[%clk 01:00:24]} {[%emt 00:05:20]} 13. b3 {[%clk
01:12:37]} {[%emt 00:05:18]} O-O {[%clk 00:59:33]} {[%emt 00:01:20]} 14. Qe1
{[%clk 01:12:07]} {[%emt 00:01:00]} Qc7 {[%clk 00:50:15]} {[%emt 00:09:48]} 15.
Bd2 {[%clk 01:11:11]} {[%emt 00:01:27]} Ne4 {[%clk 00:43:36]} {[%emt 00:07:09]}
16. g4 {[%clk 01:08:43]} {[%emt 00:02:58]} Bxe5 {[%clk 00:34:45]} {[%emt
00:09:21]} 17. gxf5 {[%clk 01:07:24]} {[%emt 00:01:48]} Nxd2 {[%clk 00:30:58]}
{[%emt 00:00:27]} 18. Qxd2 {[%clk 01:06:09]} {[%emt 00:05:36]} Bf6 {[%clk
00:31:10]} {[%emt 00:00:18]} 19. fxe6 {[%clk 01:05:48]} {[%emt 00:00:51]} fxe6
{[%clk 00:31:27]} {[%emt 00:00:13]} 20. Rac1 {[%clk 01:05:05]} {[%emt
00:01:13]} Rad8 {[%clk 00:30:02]} {[%emt 00:01:55]} 21. Kh1 {[%clk 01:02:21]}
{[%emt 00:03:14]} Kh8 {[%clk 00:30:17]} {[%emt 00:00:15]} 22. Qg2 {[%clk
01:01:23]} {[%emt 00:01:28]} Qe7 {[%clk 00:29:29]} {[%emt 00:01:18]} 23. Qh3
{[%clk 00:43:45]} {[%emt 00:18:08]} g5 {[%clk 00:26:40]} {[%emt 00:03:18]} 24.
Bg4 {[%clk 00:36:35]} {[%emt 00:07:40]} gxf4 {[%clk 00:24:42]} {[%emt
00:02:28]} 25. exf4 {[%clk 00:31:28]} {[%emt 00:05:37]} Bxd4 {[%clk 00:24:32]}
{[%emt 00:00:40]} 26. Bxe6 {[%clk 00:31:37]} {[%emt 00:00:21]} dxc4 {[%clk
00:22:18]} {[%emt 00:02:45]} 27. bxc4 {[%clk 00:31:59]} {[%emt 00:00:07]} Qf6
{[%clk 00:20:49]} {[%emt 00:02:00]} 28. Rcd1 {[%clk 00:31:34]} {[%emt
00:00:55]} Rde8 {[%clk 00:20:14]} {[%emt 00:01:05]} 29. f5 {[%clk 00:31:27]}
{[%emt 00:00:37]} Rd8 {[%clk 00:19:30]} {[%emt 00:01:14]} 30. Rd3 {[%clk
00:31:05]} {[%emt 00:00:51]} Qe5 {[%clk 00:17:27]} {[%emt 00:02:33]} 31. Qg4
{[%clk 00:28:23]} {[%emt 00:03:12]} Qxe6 {[%clk 00:13:09]} {[%emt 00:04:49]} 32.
Rxd4 {[%clk 00:28:41]} {[%emt 00:00:12]} Rxd4 {[%clk 00:11:59]} {[%emt
00:01:41]} 33. Qxd4+ {[%clk 00:28:53]} {[%emt 00:00:17]} Qf6 {[%clk 00:12:20]}
{[%emt 00:00:09]} 34. Qxa7 {[%clk 00:26:43]} {[%emt 00:02:39]} Qe5 {[%clk
00:11:58]} {[%emt 00:00:52]} 35. Qf2 {[%clk 00:26:17]} {[%emt 00:00:55]} Qe4+
{[%emt 00:02:16]} 36. Qg2 {[%emt 00:02:31]} Qxg2+ {[%emt 00:01:07]} 37. Kxg2
{[%emt 00:00:09]} Kg7 {[%clk 00:05:45]} {[%emt 00:00:06]} 38. Kg3 {[%clk
00:26:07]} {[%emt 00:01:15]} Kf6 {[%clk 00:05:47]} {[%emt 00:00:29]} 39. Rd1
{[%clk 00:24:32]} {[%emt 00:02:05]} Ra8 {[%clk 00:02:50]} {[%emt 00:03:28]} 40.
Kf4 {[%clk 00:24:25]} {[%emt 00:00:36]} Ra4 {[%clk 00:02:32]} {[%emt 00:00:48]}
41. Rd6+ {[%clk 00:23:03]} {[%emt 00:01:52]} Ke7 {[%clk 00:02:50]} {[%emt
00:00:11]} 42. Rh6 {[%clk 00:21:13]} {[%emt 00:02:19]} Rxc4+ {[%clk 00:02:51]}
{[%emt 00:00:31]} 43. Kg5 {[%clk 00:21:01]} {[%emt 00:00:42]} Rc2 {[%clk
00:02:00]} {[%emt 00:01:21]} 44. Rxh7+ {[%clk 00:21:18]} {[%emt 00:00:13]} Kd6
{[%clk 00:01:27]} {[%emt 00:01:03]} 45. h4 {[%clk 00:19:39]} {[%emt 00:02:08]}
Rxa2 {[%clk 00:01:44]} {[%emt 00:00:13]} 46. Rxb7 {[%clk 00:20:00]} {[%emt
00:00:09]} Ke5 {[%clk 00:01:58]} {[%emt 00:00:17]} 47. Re7+ {[%clk 00:20:08]}
{[%emt 00:00:21]} Kd6 {[%clk 00:02:20]} {[%emt 00:00:09]} 48. Re6+ {[%clk
00:19:08]} {[%emt 00:01:30]} Kd7 {[%clk 00:02:00]} {[%emt 00:00:50]} 49. Re4
{[%clk 00:18:08]} {[%emt 00:01:30]} Rg2+ {[%clk 00:02:02]} {[%emt 00:00:28]} 50.
Rg4 {[%clk 00:16:06]} {[%emt 00:02:31]} Re2 {[%clk 00:30:03]} {[%emt 00:02:29]}
51. h5 {[%clk 00:46:23]} {[%emt 00:00:14]} Ke7 {[%clk 00:30:02]} {[%emt
00:00:31]} 52. Kg6 {[%clk 00:46:02]} {[%emt 00:00:51]} c5 {[%clk 00:29:28]}
{[%emt 00:01:04]} 53. h6 {[%clk 00:45:56]} {[%emt 00:00:35]} c4 {[%clk
00:29:34]} {[%emt 00:00:25]} 54. h7 {[%clk 00:45:56]} {[%emt 00:00:30]} Rh2
{[%clk 00:29:58]} {[%emt 00:00:06]} 55. Re4+ {[%clk 00:46:10]} {[%emt
00:00:16]} Kf8 {[%clk 00:30:14]} {[%emt 00:00:14]} 56. Rxc4 {[%clk 00:46:25]}
{[%emt 00:00:15]} 1-0

[Event "Schack-SM 2023: Veteran-SM 50+"]
[Site "Helsingborg Arena, Mellersta Stenbocksgatan 14, Helsingborg, Sweden"]
[Date "2023.07.03"]
[Round "3.3"]
[White "Karlsson, Ulf"]
[Black "Bengtsson, Ola"]
[Result "1-0"]
[TimeControl "90 minutes for 40 moves + 30 minutes for the rest of games + 30 seconds per move from move one."]
[WhiteElo "1968"]
[BlackElo "1991"]

1. e4 {[%clk 01:30:55]} {[%emt 00:00:04]} c5 {[%clk 01:30:39]} {[%emt
00:00:21]} 2. Nc3 {[%clk 01:31:05]} {[%emt 00:00:20]} Nc6 {[%clk 01:30:44]}
{[%emt 00:00:25]} 3. g3 {[%clk 01:31:23]} {[%emt 00:00:12]} g6 {[%clk
01:29:54]} {[%emt 00:01:19]} 4. Bg2 {[%clk 01:31:42]} {[%emt 00:00:12]} Bg7
{[%clk 01:30:15]} {[%emt 00:00:09]} 5. d3 {[%clk 01:32:03]} {[%emt 00:00:08]}
e5 {[%clk 01:28:37]} {[%emt 00:02:09]} 6. f4 {[%clk 01:31:20]} {[%emt
00:01:13]} d6 {[%clk 01:26:12]} {[%emt 00:02:55]} 7. Nh3 {[%clk 01:30:19]}
{[%emt 00:01:31]} Nge7 {[%clk 01:24:34]} {[%emt 00:02:09]} 8. O-O {[%clk
01:30:15]} {[%emt 00:00:32]} f5 {[%clk 01:21:14]} {[%emt 00:03:51]} 9. Be3
{[%clk 01:25:52]} {[%emt 00:04:53]} O-O {[%clk 01:20:47]} {[%emt 00:00:58]} 10.
Qd2 {[%clk 01:25:11]} {[%emt 00:01:10]} exf4 {[%clk 01:10:53]} {[%emt
00:10:25]} 11. Nxf4 {[%clk 01:25:20]} {[%emt 00:00:20]} Ne5 {[%clk 01:06:04]}
{[%emt 00:05:20]} 12. Kh1 {[%clk 01:23:28]} {[%emt 00:02:21]} Ng4 {[%clk
01:00:27]} {[%emt 00:06:07]} 13. Bg1 {[%clk 01:23:21]} {[%emt 00:00:37]} Rb8
{[%clk 00:55:50]} {[%emt 00:05:07]} 14. h3 {[%clk 01:12:41]} {[%emt 00:11:09]}
Nf6 {[%clk 00:55:29]} {[%emt 00:00:52]} 15. Rae1 {[%clk 01:05:11]} {[%emt
00:08:00]} g5 {[%clk 00:40:54]} {[%emt 00:15:06]} 16. Nfe2 {[%clk 01:04:39]}
{[%emt 00:01:01]} h6 {[%clk 00:40:52]} {[%emt 00:00:32]} 17. Be3 {[%clk
00:59:36]} {[%emt 00:05:32]} b5 {[%clk 00:38:46]} {[%emt 00:02:37]} 18. Nd5
{[%clk 00:58:54]} {[%emt 00:01:12]} fxe4 {[%clk 00:36:05]} {[%emt 00:03:12]} 19.
Nxf6+ {[%clk 00:55:15]} {[%emt 00:04:08]} Bxf6 {[%clk 00:35:37]} {[%emt
00:00:58]} 20. dxe4 {[%clk 00:55:31]} {[%emt 00:00:14]} Be5 {[%clk 00:29:34]}
{[%emt 00:06:33]} 21. h4 {[%clk 00:53:11]} {[%emt 00:02:49]} Be6 {[%clk
00:16:21]} {[%emt 00:13:44]} 22. hxg5 {[%clk 00:52:42]} {[%emt 00:00:59]} h5
{[%clk 00:16:25]} {[%emt 00:00:26]} 23. Nf4 {[%clk 00:46:32]} {[%emt 00:06:39]}
Bg4 {[%clk 00:15:41]} {[%emt 00:01:15]} 24. Nd5 {[%clk 00:36:57]} {[%emt
00:10:05]} Bxg3 {[%clk 00:14:16]} {[%emt 00:01:55]} 25. Rxf8+ {[%clk 00:36:42]}
{[%emt 00:00:45]} Qxf8 {[%clk 00:14:16]} {[%emt 00:00:31]} 26. Rf1 {[%clk
00:34:53]} {[%emt 00:02:18]} Qg7 {[%clk 00:14:24]} {[%emt 00:00:22]} 27. Nf6+
{[%clk 00:33:34]} {[%emt 00:01:49]} Kh8 {[%clk 00:14:36]} {[%emt 00:00:19]} 28.
Bf4 {[%clk 00:31:45]} {[%emt 00:02:19]} Bh4 {[%clk 00:12:36]} {[%emt 00:02:29]}
29. Qxd6 {[%clk 00:29:14]} {[%emt 00:03:01]} Rc8 {[%clk 00:12:22]} {[%emt
00:00:44]} 30. Nxg4 {[%clk 00:27:22]} {[%emt 00:02:22]} 1-0

[Event "Schack-SM 2023: Sverigemastarklassen"]
[Site "Helsingborg Arena, Mellersta Stenbocksgatan 14, Helsingborg, Sweden"]
[Date "2023.07.03"]
[Round "3.2"]
[White "Kucuksari, Kaan"]
[Black "Olsson, William"]
[Result "1-0"]
[TimeControl "90 minutes for 40 moves + 30 minutes for the rest of the game + 30 seconds per move from move one."]
[WhiteTitle "IM"]
[BlackTitle "FM"]
[WhiteElo "2512"]
[BlackElo "2383"]

1. d4 {[%clk 01:30:57]} {[%emt 00:00:02]} d5 {[%clk 01:30:56]} {[%emt
00:00:05]} 2. c4 {[%clk 01:31:23]} {[%emt 00:00:04]} c6 {[%clk 01:31:23]}
{[%emt 00:00:03]} 3. cxd5 {[%clk 01:31:49]} {[%emt 00:00:04]} cxd5 {[%clk
01:31:48]} {[%emt 00:00:05]} 4. Nc3 {[%clk 01:32:16]} {[%emt 00:00:03]} Nf6
{[%emt 00:03:46]} 5. Bf4 Nc6 {[%clk 01:28:52]} {[%emt 00:00:14]} 6. e3 {[%clk
01:32:40]} {[%emt 00:00:31]} Bf5 {[%clk 01:28:25]} {[%emt 00:00:57]} 7. Qb3
{[%clk 01:33:01]} {[%emt 00:00:09]} Na5 {[%clk 01:28:51]} {[%emt 00:00:04]} 8.
Qa4+ {[%clk 01:33:27]} {[%emt 00:00:05]} Bd7 {[%emt 00:00:35]} 9. Qc2 Rc8
{[%clk 01:22:22]} {[%emt 00:06:57]} 10. Bd3 {[%clk 01:33:47]} {[%emt 00:00:36]}
e6 {[%clk 01:19:42]} {[%emt 00:03:10]} 11. Nf3 {[%clk 01:34:07]} {[%emt
00:00:10]} Be7 {[%clk 01:16:21]} {[%emt 00:03:50]} 12. O-O {[%clk 01:34:29]}
{[%emt 00:00:09]} Nc4 {[%clk 01:11:51]} {[%emt 00:05:01]} 13. h3 {[%clk
01:28:03]} {[%emt 00:06:56]} O-O {[%clk 01:04:57]} {[%emt 00:07:24]} 14. Qe2
{[%clk 01:18:30]} {[%emt 00:10:03]} Qa5 {[%clk 00:54:11]} {[%emt 00:11:16]} 15.
Rfc1 {[%clk 01:16:39]} {[%emt 00:02:20]} b5 {[%clk 00:42:25]} 16. Ne5 {[%clk
01:16:39]} b4 {[%clk 00:42:25]} 17. Nxd7 {[%clk 01:16:39]} Nxd7 {[%clk
00:42:25]} 18. Nd1 {[%clk 01:16:39]} Ndb6 {[%clk 00:42:25]} 19. e4 {[%clk
01:16:39]} Nd6 {[%clk 00:42:25]} 20. e5 {[%clk 01:16:39]} Nf5 {[%clk 00:42:25]}
21. Bxf5 {[%clk 01:16:39]} exf5 {[%clk 00:42:25]} 22. Ne3 {[%clk 01:16:39]} g6
{[%clk 00:42:25]} 23. Bh6 {[%clk 01:16:39]} Rfe8 {[%clk 00:42:25]} 24. Rxc8
{[%clk 01:16:39]} Rxc8 {[%clk 00:42:25]} 25. e6 {[%clk 01:16:39]} Rc6 {[%clk
00:42:25]} 26. Nxf5 {[%clk 01:16:39]} gxf5 {[%clk 00:42:25]} 27. Qe5 {[%clk
01:16:39]} 1-0

[Event "Schack-SM 2023: Mastarklassen-elit"]
[Site "Helsingborg Arena, Mellersta Stenbocksgatan 14, Helsingborg, Sweden"]
[Date "2023.07.03"]
[Round "3.1"]
[White "Lokander, Martin"]
[Black "Torngren, Gustav"]
[Result "1-0"]
[TimeControl "90 minutes for 40 moves + 30 minutes for the rest of games + 30 seconds per move from move one."]
[WhiteTitle "IM"]
[BlackTitle "FM"]
[WhiteElo "2444"]
[BlackElo "2297"]

1. Nf3 {[%clk 01:30:54]} {[%emt 00:00:05]} d5 {[%clk 01:30:25]} {[%emt
00:00:36]} 2. c4 {[%clk 01:30:45]} {[%emt 00:00:38]} c6 {[%clk 01:30:17]}
{[%emt 00:00:39]} 3. d4 {[%clk 01:29:50]} {[%emt 00:01:24]} Nf6 {[%clk
01:29:39]} {[%emt 00:01:07]} 4. e3 {[%clk 01:30:14]} {[%emt 00:00:07]} e6
{[%clk 01:29:43]} {[%emt 00:00:26]} 5. Nbd2 {[%clk 01:28:14]} {[%emt 00:02:30]}
Nbd7 {[%clk 01:28:05]} {[%emt 00:02:08]} 6. Bd3 {[%clk 01:28:34]} {[%emt
00:00:10]} Bd6 {[%clk 01:25:16]} {[%emt 00:03:20]} 7. O-O {[%clk 01:28:55]}
{[%emt 00:00:09]} O-O {[%clk 01:24:49]} {[%emt 00:00:56]} 8. e4 {[%clk
01:29:20]} {[%emt 00:00:04]} dxe4 {[%clk 01:10:40]} {[%emt 00:14:40]} 9. Nxe4
{[%clk 01:29:45]} {[%emt 00:00:06]} Nxe4 {[%clk 01:11:05]} {[%emt 00:00:04]} 10.
Bxe4 {[%clk 01:30:11]} {[%emt 00:00:04]} f5 {[%clk 01:09:40]} {[%emt 00:01:55]}
11. Bc2 {[%clk 01:23:09]} {[%emt 00:07:32]} e5 {[%clk 01:07:44]} {[%emt
00:02:26]} 12. c5 {[%clk 01:17:35]} {[%emt 00:06:06]} Bb8 {[%clk 00:57:32]}
{[%emt 00:10:40]} 13. Bb3+ {[%clk 01:07:45]} {[%emt 00:10:20]} Kh8 {[%clk
00:57:08]} {[%emt 00:00:54]} 14. Ng5 {[%clk 01:07:59]} {[%emt 00:00:16]} Qe8
{[%clk 00:56:50]} {[%emt 00:00:47]} 15. Re1 {[%clk 00:26:25]} {[%emt 00:42:05]}
e4 {[%clk 00:38:53]} {[%emt 00:18:27]} 16. f3 {[%clk 00:21:14]} {[%emt
00:05:41]} Qh5 {[%clk 00:37:19]} {[%emt 00:02:03]} 17. g3 {[%clk 00:14:25]}
{[%emt 00:07:20]} Nf6 {[%clk 00:32:51]} {[%emt 00:04:57]} 18. fxe4 {[%clk
00:14:04]} {[%emt 00:00:51]} Ng4 {[%clk 00:33:03]} {[%emt 00:00:18]} 19. Qe2
{[%clk 00:09:42]} {[%emt 00:04:53]} fxe4 {[%clk 00:20:58]} {[%emt 00:12:35]} 20.
Be3 {[%clk 00:09:00]} {[%emt 00:01:11]} h6 {[%clk 00:16:11]} {[%emt 00:05:18]}
21. Rf1 {[%clk 00:08:34]} {[%emt 00:00:56]} Bf5 {[%clk 00:16:08]} {[%emt
00:00:33]} 22. Ne6 {[%clk 00:04:17]} {[%emt 00:04:47]} Rf6 {[%clk 00:14:14]}
{[%emt 00:02:23]} 23. Nf4 {[%clk 00:04:03]} {[%emt 00:00:45]} Bxf4 {[%clk
00:14:43]} {[%emt 00:00:02]} 24. Bxf4 {[%clk 00:04:18]} {[%emt 00:00:14]} Qh3
{[%clk 00:12:10]} {[%emt 00:03:02]} 25. Be5 {[%clk 00:03:53]} {[%emt 00:00:57]}
Rff8 {[%clk 00:08:00]} {[%emt 00:04:39]} 26. Bd6 {[%clk 00:04:03]} {[%emt
00:00:20]} Rf6 {[%clk 00:07:54]} {[%emt 00:00:36]} 27. Be5 {[%clk 00:03:08]}
{[%emt 00:01:26]} Rff8 {[%clk 00:08:07]} {[%emt 00:00:16]} 28. Bd6 {[%clk
00:03:36]} {[%emt 00:00:03]} Rf6 {[%clk 00:08:30]} {[%emt 00:00:06]} 29. Be7
{[%clk 00:03:32]} {[%emt 00:00:33]} Rg6 {[%clk 00:08:18]} {[%emt 00:00:41]} 30.
Bf7 {[%clk 00:02:22]} {[%emt 00:01:42]} Re6 {[%clk 00:01:58]} {[%emt 00:06:50]}
31. Rxf5 {[%clk 00:02:26]} {[%emt 00:00:25]} Nxh2 {[%clk 00:01:44]} {[%emt
00:00:44]} 32. Bxe6 {[%clk 00:02:27]} {[%emt 00:00:29]} Qxg3+ {[%clk 00:02:01]}
{[%emt 00:00:13]} 33. Qg2 {[%clk 00:02:43]} {[%emt 00:00:14]} Nf3+ {[%clk
00:02:04]} {[%emt 00:00:28]} 34. Kh1 {[%clk 00:02:29]} {[%emt 00:00:44]} Qh4+
{[%clk 00:01:29]} {[%emt 00:01:05]} 35. Bxh4 {[%clk 00:02:56]} {[%emt
00:00:03]} 1-0

[Event "Schack-SM 2023: Junior-SM"]
[Site "Helsingborg Arena, Mellersta Stenbocksgatan 14, Helsingborg, Sweden"]
[Date "2023.07.03"]
[Round "3.4"]
[White "Seo, Jung Hyun"]
[Black "Joensson, Oscar"]
[Result "1-0"]
[TimeControl "90 minutes for 40 moves + 30 minutes for the rest of the game + 30 seconds per move from move one."]
[WhiteElo "2124"]
[BlackElo "2077"]

1. e4 {[%clk 01:30:57]} {[%emt 00:00:01]} c6 {[%clk 01:30:56]} {[%emt
00:00:04]} 2. d4 {[%clk 01:31:24]} {[%emt 00:00:02]} d5 {[%clk 01:31:22]}
{[%emt 00:00:05]} 3. e5 {[%clk 01:31:53]} {[%emt 00:00:01]} c5 {[%clk
01:31:46]} {[%emt 00:00:07]} 4. dxc5 {[%clk 01:32:19]} {[%emt 00:00:03]} e6
{[%clk 01:32:12]} {[%emt 00:00:04]} 5. a3 {[%clk 01:32:44]} {[%emt 00:00:05]}
Bxc5 {[%clk 01:32:37]} {[%emt 00:00:05]} 6. b4 {[%clk 01:33:12]} {[%emt
00:00:02]} Be7 {[%clk 01:33:00]} {[%emt 00:00:08]} 7. Nf3 {[%clk 01:33:09]}
{[%emt 00:00:32]} a5 {[%clk 01:33:21]} {[%emt 00:00:09]} 8. b5 {[%clk
01:33:26]} {[%emt 00:00:13]} Nd7 {[%clk 01:33:25]} {[%emt 00:00:26]} 9. Be2
{[%clk 01:32:49]} {[%emt 00:01:07]} Qc7 {[%clk 01:30:05]} {[%emt 00:03:51]} 10.
Bb2 {[%clk 01:32:13]} {[%emt 00:01:05]} Nh6 {[%clk 01:29:15]} {[%emt 00:01:20]}
11. O-O {[%clk 01:30:09]} {[%emt 00:02:34]} O-O {[%clk 01:20:00]} {[%emt
00:09:45]} 12. Re1 {[%clk 01:28:44]} {[%emt 00:01:56]} f6 {[%clk 01:16:10]}
{[%emt 00:04:19]} 13. c4 {[%clk 01:13:41]} {[%emt 00:15:33]} fxe5 {[%clk
00:47:39]} {[%emt 00:29:01]} 14. cxd5 {[%clk 01:13:53]} {[%emt 00:00:17]} e4
{[%clk 00:48:03]} {[%emt 00:00:07]} 15. Nd4 {[%clk 01:13:06]} {[%emt 00:01:17]}
Nc5 {[%clk 00:47:50]} {[%emt 00:00:43]} 16. Nc3 {[%clk 01:11:05]} {[%emt
00:02:31]} Qf4 {[%clk 00:36:35]} {[%emt 00:11:45]} 17. Rf1 {[%clk 01:03:13]}
{[%emt 00:08:22]} e5 {[%clk 00:26:49]} {[%emt 00:10:17]} 18. Ne6 {[%clk
01:02:32]} {[%emt 00:01:10]} Nxe6 {[%clk 00:19:11]} {[%emt 00:08:07]} 19. dxe6
{[%clk 01:02:55]} {[%emt 00:00:07]} Bxe6 {[%clk 00:19:34]} {[%emt 00:00:07]} 20.
Nd5 {[%clk 01:02:55]} {[%emt 00:00:30]} Qf7 {[%clk 00:19:51]} {[%emt 00:00:12]}
21. Nxe7+ {[%clk 01:03:01]} {[%emt 00:00:25]} Qxe7 {[%clk 00:20:16]} {[%emt
00:00:05]} 22. Qa4 {[%clk 00:59:21]} {[%emt 00:04:09]} e3 {[%clk 00:15:02]}
{[%emt 00:05:45]} 23. fxe3 {[%clk 00:57:54]} {[%emt 00:01:57]} Qg5 {[%clk
00:12:44]} {[%emt 00:02:47]} 24. Qe4 {[%clk 00:57:07]} {[%emt 00:01:17]} Nf5
{[%clk 00:12:53]} {[%emt 00:00:21]} 25. Bg4 {[%clk 00:50:47]} {[%emt 00:06:50]}
Rae8 {[%clk 00:07:02]} {[%emt 00:06:21]} 26. Rae1 {[%clk 00:47:32]} {[%emt
00:03:46]} Bc8 {[%clk 00:04:02]} {[%emt 00:03:30]} 27. Bxe5 {[%clk 00:38:07]}
{[%emt 00:09:55]} Rxe5 {[%clk 00:03:14]} {[%emt 00:01:18]} 28. Qxe5 {[%clk
00:38:36]} Qxg4 {[%clk 00:03:34]} {[%emt 00:00:09]} 29. e4 {[%clk 00:38:50]}
{[%emt 00:00:16]} Nh6 {[%clk 00:02:45]} {[%emt 00:01:19]} 30. Rxf8+ {[%clk
00:39:16]} {[%emt 00:00:04]} Kxf8 {[%clk 00:03:09]} {[%emt 00:00:06]} 31. Rf1+
{[%clk 00:39:41]} {[%emt 00:00:05]} Nf7 {[%clk 00:03:34]} {[%emt 00:00:05]} 32.
Qc7 {[%clk 00:39:49]} {[%emt 00:00:18]} Qd7 {[%clk 00:03:44]} {[%emt 00:00:24]}
33. Qc5+ {[%clk 00:39:31]} {[%emt 00:00:48]} Ke8 {[%clk 00:01:37]} {[%emt
00:02:37]} 34. Rc1 {[%clk 00:39:37]} {[%emt 00:00:24]} Nd6 {[%clk 00:02:00]}
{[%emt 00:00:08]} 35. e5 {[%clk 00:39:15]} {[%emt 00:00:52]} Nxb5 {[%clk
00:02:24]} {[%emt 00:00:05]} 36. Qxc8+ {[%clk 00:39:42]} {[%emt 00:00:03]} Qxc8
{[%clk 00:02:48]} {[%emt 00:00:07]} 37. Rxc8+ {[%clk 00:40:11]} Kd7 {[%clk
00:02:56]} {[%emt 00:00:22]} 38. Rc5 {[%clk 00:39:53]} {[%emt 00:00:47]} Nxa3
{[%clk 00:03:21]} {[%emt 00:00:05]} 39. Rxa5 {[%clk 00:40:19]} {[%emt
00:00:04]} Nc4 {[%clk 00:03:46]} {[%emt 00:00:05]} 40. Rc5 {[%clk 00:40:42]}
{[%emt 00:00:02]} Ne3 {[%clk 00:02:55]} {[%emt 00:01:26]} 41. Rb5 {[%clk
00:39:56]} {[%emt 00:01:16]} Kc6 {[%clk 00:02:55]} {[%emt 00:00:30]} 42. e6
{[%clk 00:39:53]} {[%emt 00:00:33]} Nc4 {[%clk 00:01:56]} {[%emt 00:01:29]} 43.
Rb4 {[%clk 00:39:21]} {[%emt 00:01:02]} Nd6 {[%clk 00:02:09]} {[%emt 00:00:17]}
44. Rd4 {[%clk 00:39:41]} {[%emt 00:00:09]} Nf5 {[%clk 00:02:11]} {[%emt
00:00:29]} 45. Rd3 {[%clk 00:37:50]} {[%emt 00:02:19]} b5 {[%clk 00:02:21]}
{[%emt 00:00:22]} 46. Kf2 {[%clk 00:36:19]} {[%emt 00:02:01]} b4 {[%clk
00:02:45]} {[%emt 00:00:06]} 47. Kf3 {[%clk 00:36:37]} {[%emt 00:00:10]} b3
{[%clk 00:03:11]} {[%emt 00:00:06]} 48. Kf4 {[%clk 00:35:21]} {[%emt 00:01:46]}
b2 {[%clk 00:03:34]} {[%emt 00:00:06]} 49. Rb3 {[%clk 00:35:33]} {[%emt
00:00:18]} Nd4 {[%clk 00:03:58]} {[%emt 00:00:06]} 50. Rxb2 {[%clk 00:35:52]}
{[%emt 00:00:11]} Nxe6+ {[%clk 00:04:19]} {[%emt 00:00:08]} 51. Ke5 {[%clk
00:36:20]} {[%emt 00:00:02]} Kd7 {[%clk 00:03:15]} {[%emt 00:01:35]} 52. Rb7+
{[%clk 00:36:31]} {[%emt 00:00:17]} Nc7 {[%clk 00:03:40]} {[%emt 00:00:07]} 53.
g4 {[%clk 00:36:24]} {[%emt 00:00:37]} Kc6 {[%clk 00:04:03]} {[%emt 00:00:07]}
54. Rxc7+ {[%clk 00:36:44]} {[%emt 00:00:10]} 1-0

[Event "Schack-SM 2023: Veteran-SM 65+"]
[Site "Helsingborg Arena, Mellersta Stenbocksgatan 14, Helsingborg, Sweden"]
[Date "2023.07.03"]
[Round "3.4"]
[White "Carlsson, Ingvar"]
[Black "Franzen Hogberg, Thomas"]
[Result "1/2-1/2"]
[TimeControl "90 minutes for 40 moves + 30 minutes for the rest of games + 30 seconds per move from move one."]
[WhiteElo "1998"]
[BlackElo "1998"]

1. e4 {[%clk 01:30:55]} {[%emt 00:00:03]} g6 {[%clk 01:30:31]} {[%emt
00:00:31]} 2. d4 {[%clk 01:31:00]} {[%emt 00:00:24]} Bg7 {[%clk 01:30:53]}
{[%emt 00:00:09]} 3. Be3 {[%clk 01:27:32]} {[%emt 00:03:58]} d6 {[%clk
01:27:30]} {[%emt 00:03:53]} 4. Nc3 {[%clk 01:26:55]} {[%emt 00:01:07]} Nc6
{[%clk 01:23:38]} {[%emt 00:04:22]} 5. h3 {[%clk 01:13:02]} {[%emt 00:14:23]}
e5 {[%clk 01:19:42]} {[%emt 00:04:26]} 6. Nf3 {[%clk 01:08:57]} {[%emt
00:04:35]} a6 {[%clk 01:00:10]} {[%emt 00:20:03]} 7. Bc4 {[%clk 00:51:53]}
{[%emt 00:17:33]} b5 {[%clk 00:51:29]} {[%emt 00:09:11]} 8. Bb3 {[%clk
00:35:53]} {[%emt 00:16:30]} Bb7 {[%clk 00:47:32]} {[%emt 00:04:27]} 9. O-O
{[%clk 00:31:52]} {[%emt 00:04:31]} exd4 {[%clk 00:41:11]} {[%emt 00:06:51]} 10.
Nxd4 {[%clk 00:31:59]} {[%emt 00:00:23]} Nf6 {[%clk 00:41:28]} {[%emt
00:00:12]} 11. Nxc6 {[%clk 00:24:52]} {[%emt 00:07:37]} Bxc6 {[%clk 00:37:27]}
{[%emt 00:04:32]} 12. Re1 {[%clk 00:23:34]} {[%emt 00:01:47]} 1/2-1/2